[Event "*** Titled Tuesday Blitz"]
[Site "Chess.com"]
[Date "2020.10.20"]
[Round "6"]
[White "niki_2003"]
[Black "ajedrezhoy"]
[Result "1/2-1/2"]
[WhiteElo "1847"]
[BlackElo "2212"]
[TimeControl "180+1"]
[EndTime "11:07:01 PDT"]
[Termination "Game drawn by repetition"]

1. d4 {[%clk 0:02:54.4]} 1... Nf6 {[%clk 0:02:56.7]} 2. c4 {[%clk 0:02:54.9]}
2... b6 {[%clk 0:02:55.9]} 3. Nc3 {[%clk 0:02:54.6]} 3... Bb7 {[%clk 0:02:55.8]}
4. e4 {[%clk 0:02:55.1]} 4... Nxe4 {[%clk 0:02:54.1]} 5. d5 {[%clk 0:02:52.9]}
5... Nxc3 {[%clk 0:02:53]} 6. bxc3 {[%clk 0:02:52.9]} 6... e5 {[%clk 0:02:45.4]}
7. Nf3 {[%clk 0:02:52.6]} 7... d6 {[%clk 0:02:45.2]} 8. Bd3 {[%clk 0:02:50.4]}
8... Be7 {[%clk 0:02:36.4]} 9. O-O {[%clk 0:02:50.3]} 9... Nd7 {[%clk
0:02:34.4]} 10. Qc2 {[%clk 0:02:50]} 10... Nc5 {[%clk 0:02:32.2]} 11. Re1 {[%clk
0:02:42.2]} 11... g6 {[%clk 0:02:27.7]} 12. Bh6 {[%clk 0:02:37.6]} 12... Bc8
{[%clk 0:02:11.1]} 13. Bg7 {[%clk 0:02:18.2]} 13... Rg8 {[%clk 0:02:08.8]} 14.
Bxe5 {[%clk 0:02:18.5]} 14... dxe5 {[%clk 0:02:07.2]} 15. Nxe5 {[%clk
0:02:18.2]} 15... Nxd3 {[%clk 0:02:03.2]} 16. Qxd3 {[%clk 0:02:18]} 16... Bd7
{[%clk 0:01:54.6]} 17. Qf3 {[%clk 0:02:09.8]} 17... f5 {[%clk 0:01:52.8]} 18. d6
{[%clk 0:02:06.1]} 18... cxd6 {[%clk 0:01:48.5]} 19. Nxd7 {[%clk 0:02:05.4]}
19... Kxd7 {[%clk 0:01:45.3]} 20. Qb7+ {[%clk 0:02:04.9]} 20... Ke8 {[%clk
0:01:40.8]} 21. Rxe7+ {[%clk 0:01:57.7]} 21... Qxe7 {[%clk 0:01:40.5]} 22. Qxa8+
{[%clk 0:01:58.1]} 22... Kf7 {[%clk 0:01:40.4]} 23. Qd5+ {[%clk 0:01:58.6]}
23... Qe6 {[%clk 0:01:38.3]} 24. Qb7+ {[%clk 0:01:51]} 24... Qe7 {[%clk
0:01:35.2]} 25. Qd5+ {[%clk 0:01:50]} 25... Kg7 {[%clk 0:01:31.7]} 26. Rd1
{[%clk 0:01:46.8]} 26... Rc8 {[%clk 0:01:25.6]} 27. Qxd6 {[%clk 0:01:41.1]}
27... Qxd6 {[%clk 0:01:22.1]} 28. Rxd6 {[%clk 0:01:41]} 28... Rxc4 {[%clk
0:01:20.2]} 29. Rd7+ {[%clk 0:01:41.4]} 29... Kf6 {[%clk 0:01:17.2]} 30. Rxa7
{[%clk 0:01:40.9]} 30... Rxc3 {[%clk 0:01:16.9]} 31. g3 {[%clk 0:01:40.7]} 31...
h5 {[%clk 0:01:15.1]} 32. Ra6 {[%clk 0:01:39.3]} 32... Rc1+ {[%clk 0:01:13.5]}
33. Kg2 {[%clk 0:01:36]} 33... Rb1 {[%clk 0:01:13.4]} 34. a4 {[%clk 0:01:35.1]}
34... Ke5 {[%clk 0:01:10.9]} 35. a5 {[%clk 0:01:35.5]} 35... bxa5 {[%clk
0:01:09.7]} 36. Rxa5+ {[%clk 0:01:35]} 36... Kf6 {[%clk 0:01:06.3]} 37. Ra6+
{[%clk 0:01:35.2]} 37... Kg7 {[%clk 0:01:05.8]} 38. Ra7+ {[%clk 0:01:35]} 38...
Kh6 {[%clk 0:01:01]} 39. Ra6 {[%clk 0:01:34.4]} 39... Rb3 {[%clk 0:00:57.2]} 40.
h4 {[%clk 0:01:33.4]} 40... Kg7 {[%clk 0:00:56.3]} 41. Ra7+ {[%clk 0:01:32]}
41... Kf6 {[%clk 0:00:56.2]} 42. Ra6+ {[%clk 0:01:32.5]} 42... Kf7 {[%clk
0:00:56.3]} 43. Ra7+ {[%clk 0:01:32.9]} 43... Kf6 {[%clk 0:00:54.7]} 44. Ra6+
{[%clk 0:01:33.2]} 44... Kf7 {[%clk 0:00:54.5]} 45. Ra7+ {[%clk 0:01:33.6]}
45... Kf6 {[%clk 0:00:54.5]} 1/2-1/2

[Event "*** Titled Tuesday Blitz"]
[Site "Chess.com"]
[Date "2020.10.20"]
[Round "6"]
[White "YIYUKI"]
[Black "juancruzarias"]
[Result "0-1"]
[WhiteElo "2331"]
[BlackElo "2550"]
[TimeControl "180+1"]
[EndTime "11:07:02 PDT"]
[Termination "juancruzarias won by resignation"]

1. e4 {[%clk 0:03:00.9]} 1... e6 {[%clk 0:03:00.2]} 2. d4 {[%clk 0:03:00.5]}
2... d5 {[%clk 0:03:00.7]} 3. Nc3 {[%clk 0:02:59.4]} 3... Nf6 {[%clk 0:03:00.2]}
4. e5 {[%clk 0:02:58.8]} 4... Nfd7 {[%clk 0:03:00.2]} 5. f4 {[%clk 0:02:58.7]}
5... c5 {[%clk 0:03:00.8]} 6. Nf3 {[%clk 0:02:58.5]} 6... Nc6 {[%clk 0:03:01.5]}
7. Be3 {[%clk 0:02:58.1]} 7... cxd4 {[%clk 0:03:02.2]} 8. Nxd4 {[%clk 0:02:57]}
8... Bc5 {[%clk 0:03:03.1]} 9. Qd2 {[%clk 0:02:56.5]} 9... O-O {[%clk
0:03:03.7]} 10. O-O-O {[%clk 0:02:54.5]} 10... a6 {[%clk 0:03:04.3]} 11. g3
{[%clk 0:02:53.2]} 11... Nxd4 {[%clk 0:03:03.8]} 12. Bxd4 {[%clk 0:02:52.5]}
12... b5 {[%clk 0:03:04.7]} 13. Bg2 {[%clk 0:02:51.5]} 13... Bb7 {[%clk
0:03:01.3]} 14. f5 {[%clk 0:02:45.1]} 14... Bxd4 {[%clk 0:03:01.2]} 15. Qxd4
{[%clk 0:02:43.9]} 15... Qg5+ {[%clk 0:03:01.7]} 16. Qf4 {[%clk 0:02:40.4]}
16... Qxf4+ {[%clk 0:02:59.2]} 17. gxf4 {[%clk 0:02:39.1]} 17... b4 {[%clk
0:02:59.7]} 18. fxe6 {[%clk 0:02:32.8]} 18... fxe6 {[%clk 0:02:58.2]} 19. Ne2
{[%clk 0:02:32.9]} 19... Rac8 {[%clk 0:02:52.6]} 20. Bh3 {[%clk 0:02:26.2]}
20... Nc5 {[%clk 0:02:49.1]} 21. Rhf1 {[%clk 0:02:20.6]} 21... Rc7 {[%clk
0:02:40.8]} 22. Nd4 {[%clk 0:02:20.1]} 22... Bc8 {[%clk 0:02:41]} 23. f5 {[%clk
0:02:08.6]} 23... exf5 {[%clk 0:02:39.6]} 24. Bxf5 {[%clk 0:02:09.2]} 24... g6
{[%clk 0:02:09.6]} 25. Bxc8 {[%clk 0:01:58.9]} 25... Rfxc8 {[%clk 0:02:10.5]}
26. Rd2 {[%clk 0:01:51.4]} 26... Ne4 {[%clk 0:02:09.2]} 27. Re2 {[%clk
0:01:49.6]} 27... a5 {[%clk 0:02:07.5]} 28. Kd1 {[%clk 0:01:20.7]} 28... a4
{[%clk 0:02:06.7]} 29. Nb5 {[%clk 0:01:17.8]} 29... Re7 {[%clk 0:02:04]} 30. Nd6
{[%clk 0:01:12.4]} 30... Rc6 {[%clk 0:01:58.9]} 31. Nxe4 {[%clk 0:01:11]} 31...
dxe4 {[%clk 0:01:57]} 32. Rxe4 {[%clk 0:01:10.9]} 32... Rd7+ {[%clk 0:01:50.6]}
33. Kc1 {[%clk 0:01:08.5]} 33... b3 {[%clk 0:01:51]} 34. axb3 {[%clk 0:01:07.2]}
34... axb3 {[%clk 0:01:51.2]} 35. c3 {[%clk 0:01:07.1]} 35... Ra6 {[%clk
0:01:49]} 36. Kb1 {[%clk 0:01:05.7]} 36... Rda7 {[%clk 0:01:48.4]} 37. Kc1
{[%clk 0:00:52.4]} 37... Rd7 {[%clk 0:01:42.8]} 38. Rd4 {[%clk 0:00:48]} 38...
Rxd4 {[%clk 0:01:41.2]} 39. cxd4 {[%clk 0:00:47.8]} 39... Ra1+ {[%clk
0:01:41.7]} 40. Kd2 {[%clk 0:00:48.1]} 40... Rxf1 {[%clk 0:01:42.3]} 41. d5
{[%clk 0:00:48.1]} 41... Kf7 {[%clk 0:01:41.2]} 42. Kc3 {[%clk 0:00:47.5]} 42...
Rf3+ {[%clk 0:01:41.4]} 43. Kd4 {[%clk 0:00:46.9]} 43... Ke7 {[%clk 0:01:42.3]}
44. Kc5 {[%clk 0:00:46]} 44... Rf2 {[%clk 0:01:41.9]} 45. d6+ {[%clk 0:00:45.2]}
45... Ke6 {[%clk 0:01:42.4]} 46. Kc6 {[%clk 0:00:44.9]} 46... Rc2+ {[%clk
0:01:42.6]} 47. Kb7 {[%clk 0:00:43.5]} 47... Rxb2 {[%clk 0:01:43.5]} 48. Kc8
{[%clk 0:00:43]} 48... Rd2 {[%clk 0:01:43.7]} 0-1

[Event "*** Titled Tuesday Blitz"]
[Site "Chess.com"]
[Date "2020.10.20"]
[Round "6"]
[White "grunbergmihai"]
[Black "Rodalquilar"]
[Result "0-1"]
[WhiteElo "2504"]
[BlackElo "2714"]
[TimeControl "180+1"]
[EndTime "11:07:03 PDT"]
[Termination "Rodalquilar won by resignation"]

1. Nf3 {[%clk 0:03:00.9]} 1... d5 {[%clk 0:02:59.8]} 2. c4 {[%clk 0:02:59.4]}
2... e6 {[%clk 0:02:59.7]} 3. g3 {[%clk 0:02:58.8]} 3... Nf6 {[%clk 0:02:59.1]}
4. Bg2 {[%clk 0:02:58.8]} 4... Be7 {[%clk 0:02:59]} 5. O-O {[%clk 0:02:58.8]}
5... O-O {[%clk 0:02:58.7]} 6. d4 {[%clk 0:02:58.9]} 6... dxc4 {[%clk
0:02:58.4]} 7. Qc2 {[%clk 0:02:59.1]} 7... a6 {[%clk 0:02:58.3]} 8. a4 {[%clk
0:02:59.3]} 8... Bd7 {[%clk 0:02:58.8]} 9. Qxc4 {[%clk 0:02:59.2]} 9... Bc6
{[%clk 0:02:59.4]} 10. Bg5 {[%clk 0:02:58.9]} 10... a5 {[%clk 0:02:59.4]} 11.
Nc3 {[%clk 0:02:58.4]} 11... Ra6 {[%clk 0:02:59.7]} 12. Ne5 {[%clk 0:02:54.1]}
12... Bxg2 {[%clk 0:02:57]} 13. Kxg2 {[%clk 0:02:53.8]} 13... Rb6 {[%clk
0:02:57]} 14. Ra2 {[%clk 0:02:47]} 14... Rb4 {[%clk 0:02:56.3]} 15. Qd3 {[%clk
0:02:39.5]} 15... Rxd4 {[%clk 0:02:56.5]} 16. Qf3 {[%clk 0:02:38.6]} 16... c6
{[%clk 0:02:56.3]} 17. h4 {[%clk 0:02:27.3]} 17... Nbd7 {[%clk 0:02:48.3]} 18.
Nd3 {[%clk 0:02:27]} 18... h6 {[%clk 0:02:35.3]} 19. Be3 {[%clk 0:02:25.2]}
19... Rg4 {[%clk 0:02:25.5]} 20. Rd1 {[%clk 0:02:14.6]} 20... Qc7 {[%clk
0:02:18.8]} 21. Raa1 {[%clk 0:02:06.1]} 21... Ne5 {[%clk 0:02:00.3]} 22. Nxe5
{[%clk 0:02:02.8]} 22... Qxe5 {[%clk 0:02:01.2]} 23. Bf4 {[%clk 0:01:47.1]}
23... Qf5 {[%clk 0:02:00.8]} 24. e4 {[%clk 0:01:43.1]} 24... Qg6 {[%clk
0:02:01]} 25. Bc7 {[%clk 0:01:32.5]} 25... Nxe4 {[%clk 0:01:44.6]} 26. Nxe4
{[%clk 0:01:25.2]} 26... Rxe4 {[%clk 0:01:44.4]} 27. Bxa5 {[%clk 0:01:22.5]}
27... Bxh4 {[%clk 0:01:41.8]} 28. Rd7 {[%clk 0:01:10.8]} 28... b5 {[%clk
0:01:41.7]} 29. axb5 {[%clk 0:01:00.7]} 29... cxb5 {[%clk 0:01:42.6]} 30. Bd2
{[%clk 0:00:57.2]} 30... Bf6 {[%clk 0:01:41.4]} 31. Raa7 {[%clk 0:00:46.3]}
31... Bxb2 {[%clk 0:01:39.5]} 32. Rxf7 {[%clk 0:00:41.1]} 32... Rxf7 {[%clk
0:01:37.1]} 33. Rxf7 {[%clk 0:00:40.5]} 33... Qxf7 {[%clk 0:01:37.4]} 34. Qxe4
{[%clk 0:00:40.4]} 34... Qd7 {[%clk 0:01:31.5]} 35. Bf4 {[%clk 0:00:35.3]} 35...
Qd5 {[%clk 0:01:30.1]} 36. Kf3 {[%clk 0:00:34.8]} 36... Kf7 {[%clk 0:01:28.9]}
37. Qxd5 {[%clk 0:00:32.5]} 37... exd5 {[%clk 0:01:29]} 38. Ke3 {[%clk
0:00:33.4]} 38... Bc1+ {[%clk 0:01:29.2]} 39. Kd3 {[%clk 0:00:34.3]} 39... Bxf4
{[%clk 0:01:27.7]} 0-1

[Event "*** Titled Tuesday Blitz"]
[Site "Chess.com"]
[Date "2020.10.20"]
[Round "6"]
[White "mr_gustavo"]
[Black "suyu28"]
[Result "0-1"]
[WhiteElo "2428"]
[BlackElo "2611"]
[TimeControl "180+1"]
[EndTime "11:07:09 PDT"]
[Termination "suyu28 won on time"]

1. d4 {[%clk 0:03:00.9]} 1... Nf6 {[%clk 0:02:59]} 2. c4 {[%clk 0:03:00.7]} 2...
e6 {[%clk 0:02:59.3]} 3. Nf3 {[%clk 0:03:00.3]} 3... d5 {[%clk 0:02:58.5]} 4. g3
{[%clk 0:02:59.9]} 4... Bb4+ {[%clk 0:02:54.9]} 5. Nbd2 {[%clk 0:02:59]} 5...
O-O {[%clk 0:02:53.9]} 6. a3 {[%clk 0:02:57.6]} 6... Bxd2+ {[%clk 0:02:47.2]} 7.
Qxd2 {[%clk 0:02:56.6]} 7... dxc4 {[%clk 0:02:46.9]} 8. Bg2 {[%clk 0:02:55.2]}
8... b5 {[%clk 0:02:39.3]} 9. a4 {[%clk 0:02:51.4]} 9... a6 {[%clk 0:02:20.1]}
10. axb5 {[%clk 0:02:50.9]} 10... Bb7 {[%clk 0:02:20.6]} 11. bxa6 {[%clk
0:02:48.8]} 11... Nxa6 {[%clk 0:02:21.1]} 12. O-O {[%clk 0:02:46.2]} 12... c5
{[%clk 0:02:21.1]} 13. dxc5 {[%clk 0:02:35.6]} 13... Nxc5 {[%clk 0:02:13.9]} 14.
Qxd8 {[%clk 0:02:33.7]} 14... Rfxd8 {[%clk 0:02:11.6]} 15. Be3 {[%clk
0:02:27.3]} 15... Na4 {[%clk 0:02:06.3]} 16. Bd4 {[%clk 0:01:55.8]} 16... Ne4
{[%clk 0:01:46.7]} 17. Rfd1 {[%clk 0:01:42.9]} 17... c3 {[%clk 0:01:43.3]} 18.
b3 {[%clk 0:01:31.6]} 18... Nac5 {[%clk 0:01:34.8]} 19. Rxa8 {[%clk 0:00:15.7]}
19... Bxa8 {[%clk 0:01:31]} 20. Ng5 {[%clk 0:00:03.9]} 20... c2 {[%clk
0:01:18.2]} 21. Rc1 {[%clk 0:00:03.7]} 21... Rxd4 {[%clk 0:01:16]} 22. Nxe4
{[%clk 0:00:03.9]} 22... Rd1+ {[%clk 0:01:15.5]} 0-1

[Event "*** Titled Tuesday Blitz"]
[Site "Chess.com"]
[Date "2020.10.20"]
[Round "6"]
[White "gliglu"]
[Black "CarlssonLudvig"]
[Result "1-0"]
[WhiteElo "2342"]
[BlackElo "2438"]
[TimeControl "180+1"]
[EndTime "11:07:10 PDT"]
[Termination "gliglu won by resignation"]

1. d4 {[%clk 0:03:00.9]} 1... g6 {[%clk 0:03:00.3]} 2. c4 {[%clk 0:03:00]} 2...
Bg7 {[%clk 0:03:00.4]} 3. Nf3 {[%clk 0:02:59.9]} 3... e6 {[%clk 0:03:00.7]} 4.
g3 {[%clk 0:02:59.1]} 4... Ne7 {[%clk 0:03:00.3]} 5. Bg2 {[%clk 0:02:59.2]} 5...
O-O {[%clk 0:02:57.4]} 6. O-O {[%clk 0:02:58.9]} 6... d5 {[%clk 0:02:56.7]} 7.
b3 {[%clk 0:02:56.8]} 7... a5 {[%clk 0:02:54.9]} 8. Nc3 {[%clk 0:02:55.1]} 8...
c6 {[%clk 0:02:52.7]} 9. Bb2 {[%clk 0:02:54]} 9... Nd7 {[%clk 0:02:51.1]} 10.
cxd5 {[%clk 0:02:52.8]} 10... exd5 {[%clk 0:02:46.2]} 11. Rc1 {[%clk 0:02:51.9]}
11... Nf6 {[%clk 0:02:44.9]} 12. Ne5 {[%clk 0:02:49.1]} 12... Nf5 {[%clk
0:02:44.2]} 13. e3 {[%clk 0:02:46.2]} 13... Nd6 {[%clk 0:02:44.1]} 14. Na4
{[%clk 0:02:41.5]} 14... Re8 {[%clk 0:02:38.5]} 15. Qe2 {[%clk 0:02:39.2]} 15...
Nd7 {[%clk 0:02:18.1]} 16. f4 {[%clk 0:02:36.6]} 16... f6 {[%clk 0:02:17.7]} 17.
Nd3 {[%clk 0:02:29.9]} 17... Nf5 {[%clk 0:02:17.2]} 18. Rf3 {[%clk 0:02:22.4]}
18... Nf8 {[%clk 0:02:11.8]} 19. Qf2 {[%clk 0:02:17]} 19... Nd6 {[%clk 0:02:11]}
20. Nac5 {[%clk 0:02:10.7]} 20... Bg4 {[%clk 0:02:06.6]} 21. h3 {[%clk
0:02:07.5]} 21... Bxf3 {[%clk 0:02:05.8]} 22. Qxf3 {[%clk 0:02:07.4]} 22... Nd7
{[%clk 0:02:01.8]} 23. Ba3 {[%clk 0:02:03.6]} 23... Nxc5 {[%clk 0:02:01.8]} 24.
Bxc5 {[%clk 0:02:02.8]} 24... Ne4 {[%clk 0:02:01.4]} 25. Ba3 {[%clk 0:02:01.8]}
25... a4 {[%clk 0:01:58.9]} 26. b4 {[%clk 0:02:00.8]} 26... Nd6 {[%clk
0:01:53.6]} 27. Re1 {[%clk 0:01:49.4]} 27... Nc4 {[%clk 0:01:52.9]} 28. Bc1
{[%clk 0:01:48.5]} 28... f5 {[%clk 0:01:51.8]} 29. a3 {[%clk 0:01:48.1]} 29...
b6 {[%clk 0:01:46.4]} 30. Ne5 {[%clk 0:01:47.4]} 30... Bxe5 {[%clk 0:01:45.4]}
31. fxe5 {[%clk 0:01:46.5]} 31... c5 {[%clk 0:01:45.2]} 32. g4 {[%clk
0:01:44.2]} 32... fxg4 {[%clk 0:01:28.2]} 33. Qxd5+ {[%clk 0:01:41.6]} 33...
Qxd5 {[%clk 0:01:27.5]} 34. Bxd5+ {[%clk 0:01:41.4]} 34... Kg7 {[%clk 0:01:28]}
35. Bxc4 {[%clk 0:01:41.3]} 35... cxb4 {[%clk 0:01:28.5]} 36. d5 {[%clk
0:01:37.7]} 36... gxh3 {[%clk 0:01:26.1]} 37. d6 {[%clk 0:01:35.3]} 37... Rec8
{[%clk 0:01:16.9]} 38. Bd5 {[%clk 0:01:34.4]} 38... Ra5 {[%clk 0:01:16.5]} 39.
e4 {[%clk 0:01:29.6]} 39... Rd8 {[%clk 0:01:10.9]} 40. axb4 {[%clk 0:01:27.8]}
40... Ra7 {[%clk 0:01:08.1]} 41. Bg5 {[%clk 0:01:27.6]} 41... Re8 {[%clk
0:00:59.3]} 42. Bf6+ {[%clk 0:01:24.3]} 42... Kf8 {[%clk 0:00:59.4]} 43. e6
{[%clk 0:01:20.5]} 43... Rxe6 {[%clk 0:00:53.6]} 44. Bxe6 {[%clk 0:01:19.8]}
44... a3 {[%clk 0:00:53.3]} 45. d7 {[%clk 0:01:18.6]} 45... Ra8 {[%clk
0:00:52.9]} 46. Rc1 {[%clk 0:01:17.2]} 1-0

[Event "*** Titled Tuesday Blitz"]
[Site "Chess.com"]
[Date "2020.10.20"]
[Round "6"]
[White "Pultis"]
[Black "rasmussvane"]
[Result "1/2-1/2"]
[WhiteElo "2681"]
[BlackElo "2889"]
[TimeControl "180+1"]
[EndTime "11:07:11 PDT"]
[Termination "Game drawn by agreement"]

1. Nf3 {[%clk 0:03:00.9]} 1... d5 {[%clk 0:02:59.5]} 2. b3 {[%clk 0:03:01.2]}
2... Bf5 {[%clk 0:02:58.7]} 3. Bb2 {[%clk 0:03:00.7]} 3... e6 {[%clk 0:02:59.2]}
4. g3 {[%clk 0:02:50.1]} 4... Nf6 {[%clk 0:02:59.2]} 5. Bg2 {[%clk 0:02:50.6]}
5... h6 {[%clk 0:02:59.6]} 6. O-O {[%clk 0:02:50.3]} 6... Be7 {[%clk 0:02:59.7]}
7. c4 {[%clk 0:02:48.9]} 7... O-O {[%clk 0:02:59.6]} 8. d3 {[%clk 0:02:47.8]}
8... c5 {[%clk 0:02:55.4]} 9. cxd5 {[%clk 0:02:44.8]} 9... exd5 {[%clk
0:02:56.3]} 10. d4 {[%clk 0:02:42]} 10... Nc6 {[%clk 0:02:56.4]} 11. dxc5 {[%clk
0:02:41.6]} 11... Bxc5 {[%clk 0:02:57.3]} 12. Nc3 {[%clk 0:02:40.1]} 12... a6
{[%clk 0:02:56.1]} 13. Rc1 {[%clk 0:02:34.6]} 13... Ba7 {[%clk 0:02:56.2]} 14.
Na4 {[%clk 0:02:18.4]} 14... Qe7 {[%clk 0:02:31.5]} 15. Nd4 {[%clk 0:02:08.7]}
15... Nxd4 {[%clk 0:02:27.6]} 16. Bxd4 {[%clk 0:02:09.6]} 16... Bxd4 {[%clk
0:02:28.5]} 17. Qxd4 {[%clk 0:02:10.5]} 17... Qxe2 {[%clk 0:02:29.1]} 18. Nc3
{[%clk 0:02:10.9]} 18... Qg4 {[%clk 0:02:21]} 19. Qxg4 {[%clk 0:02:06.3]} 19...
Bxg4 {[%clk 0:02:21.9]} 20. Nxd5 {[%clk 0:02:06.3]} 20... Nxd5 {[%clk
0:02:16.8]} 21. Bxd5 {[%clk 0:02:07.2]} 21... Rab8 {[%clk 0:01:52.9]} 22. Rc7
{[%clk 0:02:05.2]} 22... b6 {[%clk 0:01:46.5]} 23. Re1 {[%clk 0:02:02.1]} 23...
Rbd8 {[%clk 0:01:44.7]} 24. Re5 {[%clk 0:01:41.5]} 24... Rd6 {[%clk 0:01:34.6]}
25. Kg2 {[%clk 0:01:36.3]} 25... a5 {[%clk 0:01:28.5]} 26. a3 {[%clk 0:01:25.6]}
26... Bd7 {[%clk 0:01:18.6]} 27. b4 {[%clk 0:01:18.9]} 27... axb4 {[%clk
0:01:17.8]} 28. axb4 {[%clk 0:01:19.8]} 28... Rd8 {[%clk 0:01:09.6]} 29. Bc4
{[%clk 0:01:00.5]} 29... Rc6 {[%clk 0:01:02.7]} 30. Rxd7 {[%clk 0:00:30.6]}
30... Rxd7 {[%clk 0:01:03.6]} 31. Re8+ {[%clk 0:00:30.4]} 31... Kh7 {[%clk
0:01:02.5]} 32. Bb5 {[%clk 0:00:31.3]} 1/2-1/2

[Event "*** Titled Tuesday Blitz"]
[Site "Chess.com"]
[Date "2020.10.20"]
[Round "6"]
[White "jacky72"]
[Black "TheBigBoss04"]
[Result "0-1"]
[WhiteElo "2565"]
[BlackElo "2742"]
[TimeControl "180+1"]
[EndTime "11:07:15 PDT"]
[Termination "TheBigBoss04 won by checkmate"]

1. d4 {[%clk 0:03:00.9]} 1... Nf6 {[%clk 0:02:59.9]} 2. c4 {[%clk 0:03:01.5]}
2... g6 {[%clk 0:02:58.1]} 3. Nc3 {[%clk 0:02:57.6]} 3... Bg7 {[%clk 0:02:56.5]}
4. e4 {[%clk 0:02:57.9]} 4... d6 {[%clk 0:02:53.9]} 5. Be2 {[%clk 0:02:58.3]}
5... O-O {[%clk 0:02:46.9]} 6. Bg5 {[%clk 0:02:58.6]} 6... a6 {[%clk 0:02:40.8]}
7. Nf3 {[%clk 0:02:57.5]} 7... c6 {[%clk 0:02:40.9]} 8. O-O {[%clk 0:02:57.4]}
8... Nbd7 {[%clk 0:02:38.2]} 9. e5 {[%clk 0:02:47]} 9... Ne8 {[%clk 0:02:31.7]}
10. exd6 {[%clk 0:02:42.4]} 10... Nxd6 {[%clk 0:02:32.6]} 11. Re1 {[%clk
0:02:41.8]} 11... h6 {[%clk 0:02:28.1]} 12. Bh4 {[%clk 0:02:41.6]} 12... Nf5
{[%clk 0:02:27.6]} 13. Bf1 {[%clk 0:02:37.8]} 13... Nxh4 {[%clk 0:02:26]} 14.
Nxh4 {[%clk 0:02:38.7]} 14... e5 {[%clk 0:02:24]} 15. d5 {[%clk 0:02:33.2]}
15... Qxh4 {[%clk 0:02:21.9]} 16. dxc6 {[%clk 0:02:28.1]} 16... bxc6 {[%clk
0:02:21.7]} 17. Qd6 {[%clk 0:02:28.5]} 17... Qf6 {[%clk 0:02:19.4]} 18. Qc7
{[%clk 0:02:28.9]} 18... Nc5 {[%clk 0:02:05.4]} 19. b4 {[%clk 0:02:24.4]} 19...
Ne6 {[%clk 0:01:36]} 20. Qxc6 {[%clk 0:02:23.4]} 20... Rb8 {[%clk 0:01:36.4]}
21. Nd5 {[%clk 0:02:11]} 21... Qg5 {[%clk 0:01:36.1]} 22. Qd6 {[%clk 0:02:07]}
22... Bb7 {[%clk 0:01:31.9]} 23. Qe7 {[%clk 0:01:19.7]} 23... Bxd5 {[%clk
0:01:29.9]} 24. Qxg5 {[%clk 0:01:19.1]} 24... hxg5 {[%clk 0:01:28.3]} 25. cxd5
{[%clk 0:01:19.5]} 25... Nd4 {[%clk 0:01:28.9]} 26. Rac1 {[%clk 0:01:14.1]}
26... Rxb4 {[%clk 0:01:28.1]} 27. Bxa6 {[%clk 0:01:14.6]} 27... Rd8 {[%clk
0:01:27.9]} 28. Bc4 {[%clk 0:01:14]} 28... Rc8 {[%clk 0:01:16.2]} 29. Bd3 {[%clk
0:01:11.2]} 29... Rxc1 {[%clk 0:01:14.8]} 30. Rxc1 {[%clk 0:01:12.1]} 30... e4
{[%clk 0:01:14.9]} 31. Bf1 {[%clk 0:01:06]} 31... Be5 {[%clk 0:01:13.9]} 32. g3
{[%clk 0:00:51.6]} 32... Rb2 {[%clk 0:01:10.7]} 33. a4 {[%clk 0:00:47.4]} 33...
e3 {[%clk 0:01:07.3]} 34. a5 {[%clk 0:00:42.2]} 34... Nf3+ {[%clk 0:01:05.8]}
35. Kg2 {[%clk 0:00:41.4]} 35... Rxf2+ {[%clk 0:01:06.7]} 36. Kh3 {[%clk
0:00:40.4]} 36... f5 {[%clk 0:01:04.2]} 37. Rc8+ {[%clk 0:00:38.8]} 37... Kg7
{[%clk 0:01:03.8]} 38. Bg2 {[%clk 0:00:39.4]} 38... g4# {[%clk 0:01:03.7]} 0-1

[Event "*** Titled Tuesday Blitz"]
[Site "Chess.com"]
[Date "2020.10.20"]
[Round "6"]
[White "FMJoseHerrera"]
[Black "LaPorfia"]
[Result "1-0"]
[WhiteElo "2544"]
[BlackElo "2321"]
[TimeControl "180+1"]
[EndTime "11:07:23 PDT"]
[Termination "FMJoseHerrera won by resignation"]

1. Nf3 {[%clk 0:02:17]} 1... c5 {[%clk 0:02:58.9]} 2. g3 {[%clk 0:02:16.9]} 2...
Nc6 {[%clk 0:02:58.6]} 3. Bg2 {[%clk 0:02:16.4]} 3... g6 {[%clk 0:02:59.2]} 4.
d3 {[%clk 0:02:16.5]} 4... Bg7 {[%clk 0:02:59.2]} 5. Nc3 {[%clk 0:02:16.8]} 5...
e5 {[%clk 0:02:58.7]} 6. e4 {[%clk 0:02:16.9]} 6... Nge7 {[%clk 0:02:57.9]} 7.
h4 {[%clk 0:02:17]} 7... d5 {[%clk 0:02:54.1]} 8. exd5 {[%clk 0:02:16.9]} 8...
Nxd5 {[%clk 0:02:53.8]} 9. h5 {[%clk 0:02:17.4]} 9... Nxc3 {[%clk 0:02:51.1]}
10. bxc3 {[%clk 0:02:17.4]} 10... e4 {[%clk 0:02:51.4]} 11. hxg6 {[%clk
0:02:04.4]} 11... fxg6 {[%clk 0:02:44]} 12. Ng5 {[%clk 0:01:49]} 12... Bxc3+
{[%clk 0:02:41.9]} 13. Bd2 {[%clk 0:01:49.1]} 13... Bxa1 {[%clk 0:02:25.8]} 14.
Qxa1 {[%clk 0:01:47.6]} 14... Nd4 {[%clk 0:02:25.8]} 15. O-O {[%clk 0:01:36.5]}
15... O-O {[%clk 0:02:17.6]} 16. Nxe4 {[%clk 0:01:36]} 16... b6 {[%clk
0:00:50.6]} 17. Bh6 {[%clk 0:01:32.9]} 17... Rf5 {[%clk 0:00:46.1]} 18. Qd1
{[%clk 0:01:11.4]} 18... Be6 {[%clk 0:00:36.7]} 19. c3 {[%clk 0:01:07.4]} 19...
Nc6 {[%clk 0:00:33.4]} 20. Re1 {[%clk 0:00:52.3]} 20... Rh5 {[%clk 0:00:32.2]}
21. Bg5 {[%clk 0:00:45.2]} 21... Rxg5 {[%clk 0:00:25.3]} 22. Nxg5 {[%clk
0:00:46.1]} 22... Qxg5 {[%clk 0:00:24.7]} 23. Rxe6 {[%clk 0:00:45.6]} 1-0